[Event "Late-Titled-Tuesday-Blitz-September-12-2023"]
[Site "Chess.com"]
[Date "2023.09.12"]
[Round "2"]
[White "maksimys18"]
[Black "GMJustin"]
[Result "1-0"]
[WhiteElo "2492"]
[BlackElo "2238"]
[TimeControl "180+1"]
[EndTime "14:15:20 PDT"]
[Termination "maksimys18 won on time"]

1. d4 {[%clk 0:03:00.9]} 1... d5 {[%clk 0:02:49]} 2. Nf3 {[%clk 0:03:00.3]} 2...
Nf6 {[%clk 0:02:32.9]} 3. c4 {[%clk 0:03:00.3]} 3... c6 {[%clk 0:02:27.6]} 4.
Nc3 {[%clk 0:02:59.7]} 4... e6 {[%clk 0:02:19.2]} 5. Bg5 {[%clk 0:02:59.4]} 5...
h6 {[%clk 0:01:54.8]} 6. Bh4 {[%clk 0:02:58.4]} 6... Be7 {[%clk 0:01:54.3]} 7.
cxd5 {[%clk 0:02:57.9]} 7... exd5 {[%clk 0:01:39.6]} 8. e3 {[%clk 0:02:57.5]}
8... Bf5 {[%clk 0:01:20.5]} 9. Bd3 {[%clk 0:02:56.7]} 9... Bxd3 {[%clk
0:01:09.1]} 10. Qxd3 {[%clk 0:02:57.6]} 10... Nbd7 {[%clk 0:01:09.1]} 11. O-O
{[%clk 0:02:57.2]} 11... O-O {[%clk 0:01:08.4]} 12. Rae1 {[%clk 0:02:56.8]}
12... Ne4 {[%clk 0:01:00.4]} 13. Bg3 {[%clk 0:02:55]} 13... f5 {[%clk
0:00:53.1]} 14. Nd2 {[%clk 0:02:48]} 14... a5 {[%clk 0:00:44.6]} 15. f3 {[%clk
0:02:46]} 15... Nxd2 {[%clk 0:00:17.2]} 16. Qxd2 {[%clk 0:02:45.6]} 16... Nb6
{[%clk 0:00:17.3]} 17. Qd3 {[%clk 0:02:42.8]} 17... Bd6 {[%clk 0:00:13.7]} 18.
Bxd6 {[%clk 0:02:41]} 18... Qxd6 {[%clk 0:00:13.7]} 19. b3 {[%clk 0:02:41.6]}
19... a4 {[%clk 0:00:12]} 20. e4 {[%clk 0:02:41.4]} 20... fxe4 {[%clk
0:00:10.4]} 21. fxe4 {[%clk 0:02:41.5]} 21... axb3 {[%clk 0:00:09.7]} 22. axb3
{[%clk 0:02:41.6]} 22... dxe4 {[%clk 0:00:09.1]} 23. Nxe4 {[%clk 0:02:41.9]}
23... Qd5 {[%clk 0:00:06.7]} 24. h3 {[%clk 0:02:33.1]} 24... Rxf1+ {[%clk
0:00:05.6]} 25. Rxf1 {[%clk 0:02:31.9]} 25... Rd8 {[%clk 0:00:05.7]} 26. Nf6+
{[%clk 0:02:26.4]} 26... gxf6 {[%clk 0:00:04.8]} 27. Qg6+ {[%clk 0:02:26.9]}
27... Kh8 {[%clk 0:00:04.6]} 28. Qxh6+ {[%clk 0:02:26]} 28... Kg8 {[%clk
0:00:04.3]} 29. Qg6+ {[%clk 0:02:26.5]} 29... Kh8 {[%clk 0:00:03.3]} 30. Qxf6+
{[%clk 0:02:23]} 30... Kg8 {[%clk 0:00:01.7]} 31. Rf4 {[%clk 0:02:15.9]} 1-0

[Event "Late-Titled-Tuesday-Blitz-September-12-2023"]
[Site "Chess.com"]
[Date "2023.09.12"]
[Round "2"]
[White "Verony64"]
[Black "Alex_Banzea"]
[Result "0-1"]
[WhiteElo "2267"]
[BlackElo "2642"]
[TimeControl "180+1"]
[EndTime "14:15:24 PDT"]
[Termination "Alex_Banzea won by resignation"]

1. e4 {[%clk 0:03:00.9]} 1... c6 {[%clk 0:02:56.8]} 2. Nc3 {[%clk 0:02:58.7]}
2... d5 {[%clk 0:02:57.7]} 3. d3 {[%clk 0:02:56.4]} 3... g6 {[%clk 0:02:56.9]}
4. e5 {[%clk 0:02:55.7]} 4... c5 {[%clk 0:02:53.3]} 5. f4 {[%clk 0:02:56]} 5...
Nc6 {[%clk 0:02:52]} 6. Nf3 {[%clk 0:02:56.3]} 6... Bg4 {[%clk 0:02:48]} 7. h3
{[%clk 0:02:54.4]} 7... Bxf3 {[%clk 0:02:47.3]} 8. Qxf3 {[%clk 0:02:54.4]} 8...
e6 {[%clk 0:02:46]} 9. Ne2 {[%clk 0:02:50.7]} 9... h5 {[%clk 0:02:45.8]} 10. g3
{[%clk 0:02:49.7]} 10... Nge7 {[%clk 0:02:43.9]} 11. c3 {[%clk 0:02:47.5]} 11...
Nf5 {[%clk 0:02:44]} 12. Bg2 {[%clk 0:02:47.3]} 12... Be7 {[%clk 0:02:41]} 13.
O-O {[%clk 0:02:46.9]} 13... g5 {[%clk 0:02:36.8]} 14. d4 {[%clk 0:02:26.4]}
14... g4 {[%clk 0:02:23.4]} 15. hxg4 {[%clk 0:02:21.6]} 15... hxg4 {[%clk
0:02:24.3]} 16. Qxg4 {[%clk 0:02:20.3]} 16... Qb6 {[%clk 0:02:24.9]} 17. Rd1
{[%clk 0:01:31.5]} 17... cxd4 {[%clk 0:02:24.9]} 18. cxd4 {[%clk 0:01:30.1]}
18... Ncxd4 {[%clk 0:02:25.8]} 19. Nxd4 {[%clk 0:01:24.9]} 19... Bc5 {[%clk
0:02:26.3]} 20. Kf1 {[%clk 0:01:15.9]} 20... Bxd4 {[%clk 0:02:26.4]} 21. Bd2
{[%clk 0:00:57.3]} 21... Qb5+ {[%clk 0:02:24.4]} 22. Ke1 {[%clk 0:00:52.4]}
22... Rh2 {[%clk 0:02:19.6]} 23. a4 {[%clk 0:00:28.1]} 23... Qb6 {[%clk
0:02:01.6]} 24. Bxd5 {[%clk 0:00:20.6]} 24... Bf2+ {[%clk 0:01:47.1]} 25. Kf1
{[%clk 0:00:16.6]} 25... Nxg3+ {[%clk 0:01:43.2]} 0-1

[Event "Late-Titled-Tuesday-Blitz-September-12-2023"]
[Site "Chess.com"]
[Date "2023.09.12"]
[Round "2"]
[White "oskariot"]
[Black "ashookk"]
[Result "1-0"]
[WhiteElo "2687"]
[BlackElo "2357"]
[TimeControl "180+1"]
[EndTime "14:15:31 PDT"]
[Termination "oskariot won by resignation"]

1. e4 {[%clk 0:02:51.7]} 1... e6 {[%clk 0:03:00]} 2. d4 {[%clk 0:02:51.6]} 2...
d5 {[%clk 0:03:00.4]} 3. Nd2 {[%clk 0:02:52.5]} 3... Be7 {[%clk 0:03:00.4]} 4.
Bd3 {[%clk 0:02:51.5]} 4... c5 {[%clk 0:03:00.3]} 5. dxc5 {[%clk 0:02:52.4]}
5... Nf6 {[%clk 0:02:58]} 6. Qe2 {[%clk 0:02:52.8]} 6... Nc6 {[%clk 0:02:57.9]}
7. Ngf3 {[%clk 0:02:53.3]} 7... Nd7 {[%clk 0:02:55.8]} 8. exd5 {[%clk
0:02:52.7]} 8... exd5 {[%clk 0:02:55.3]} 9. Nb3 {[%clk 0:02:52.7]} 9... O-O
{[%clk 0:02:55.5]} 10. Be3 {[%clk 0:02:47.5]} 10... Re8 {[%clk 0:02:55.6]} 11.
O-O-O {[%clk 0:02:46.7]} 11... Nxc5 {[%clk 0:02:55]} 12. Nxc5 {[%clk 0:02:42.1]}
12... Bxc5 {[%clk 0:02:54.5]} 13. Bxh7+ {[%clk 0:02:34.2]} 13... Kxh7 {[%clk
0:02:23.2]} 14. Qd3+ {[%clk 0:02:33.9]} 14... Kg8 {[%clk 0:02:23.8]} 15. Bxc5
{[%clk 0:02:31.9]} 15... Be6 {[%clk 0:02:24]} 16. h4 {[%clk 0:02:25.5]} 16...
Qf6 {[%clk 0:02:10.2]} 17. Ng5 {[%clk 0:02:17.3]} 17... g6 {[%clk 0:02:00.5]}
18. Bd4 {[%clk 0:02:11]} 18... Qf4+ {[%clk 0:01:40.7]} 19. Qe3 {[%clk
0:01:48.4]} 19... Nxd4 {[%clk 0:01:13.9]} 20. Rxd4 {[%clk 0:01:49.3]} 20...
Qxe3+ {[%clk 0:01:13.6]} 21. fxe3 {[%clk 0:01:50.2]} 21... Bf5 {[%clk
0:01:13.9]} 22. Re1 {[%clk 0:01:45.6]} 22... Rac8 {[%clk 0:01:09.7]} 23. c3
{[%clk 0:01:45.8]} 23... Rc5 {[%clk 0:01:07.8]} 24. g4 {[%clk 0:01:43.4]} 24...
Be4 {[%clk 0:00:52.7]} 25. Nxe4 {[%clk 0:01:42.8]} 25... dxe4 {[%clk 0:00:44]}
26. Rf1 {[%clk 0:01:40.1]} 26... Rc7 {[%clk 0:00:43.1]} 27. Rf4 {[%clk
0:01:37.3]} 27... Rce7 {[%clk 0:00:43.7]} 28. g5 {[%clk 0:01:37.5]} 28... Kg7
{[%clk 0:00:42.7]} 29. c4 {[%clk 0:01:37.4]} 29... b6 {[%clk 0:00:40.4]} 30. Kc2
{[%clk 0:01:37.4]} 30... Re5 {[%clk 0:00:39.6]} 31. Kc3 {[%clk 0:01:37]} 31...
a5 {[%clk 0:00:39.1]} 32. Rd7 {[%clk 0:01:36.6]} 32... R8e7 {[%clk 0:00:38]} 33.
Rxe7 {[%clk 0:01:36.4]} 33... Rxe7 {[%clk 0:00:38.9]} 34. b3 {[%clk 0:01:32]}
34... Kf8 {[%clk 0:00:35.1]} 35. Rf6 {[%clk 0:01:32.1]} 1-0

[Event "Late-Titled-Tuesday-Blitz-September-12-2023"]
[Site "Chess.com"]
[Date "2023.09.12"]
[Round "2"]
[White "Siemba"]
[Black "ferrufino64"]
[Result "1-0"]
[WhiteElo "2510"]
[BlackElo "2273"]
[TimeControl "180+1"]
[EndTime "14:15:31 PDT"]
[Termination "Siemba won by resignation"]

1. Nf3 {[%clk 0:02:55.4]} 1... Nf6 {[%clk 0:02:56.4]} 2. g3 {[%clk 0:02:56.3]}
2... c5 {[%clk 0:02:56.2]} 3. Bg2 {[%clk 0:02:57.2]} 3... d6 {[%clk 0:02:56.8]}
4. O-O {[%clk 0:02:57.6]} 4... Nc6 {[%clk 0:02:54.6]} 5. d4 {[%clk 0:02:53.1]}
5... cxd4 {[%clk 0:02:53.7]} 6. Nxd4 {[%clk 0:02:54]} 6... Bd7 {[%clk
0:02:54.2]} 7. c4 {[%clk 0:02:53.9]} 7... g6 {[%clk 0:02:53.4]} 8. Nc3 {[%clk
0:02:54.3]} 8... Bg7 {[%clk 0:02:53.8]} 9. Nc2 {[%clk 0:02:48.9]} 9... O-O
{[%clk 0:02:53.7]} 10. Bd2 {[%clk 0:02:49.1]} 10... Rc8 {[%clk 0:02:54]} 11. b3
{[%clk 0:02:49.1]} 11... Re8 {[%clk 0:02:46.6]} 12. Rc1 {[%clk 0:02:48.6]} 12...
Bf5 {[%clk 0:02:43.9]} 13. Ne3 {[%clk 0:02:47.9]} 13... Bd7 {[%clk 0:02:39.1]}
14. Ned5 {[%clk 0:02:37.1]} 14... e6 {[%clk 0:02:29.6]} 15. Nxf6+ {[%clk
0:02:33.8]} 15... Bxf6 {[%clk 0:02:29.9]} 16. Bf4 {[%clk 0:02:33.9]} 16... e5
{[%clk 0:02:27.8]} 17. Be3 {[%clk 0:02:28.5]} 17... Be7 {[%clk 0:02:26.9]} 18.
Nd5 {[%clk 0:02:28.1]} 18... Be6 {[%clk 0:02:27.2]} 19. Qd2 {[%clk 0:02:27.5]}
19... Bxd5 {[%clk 0:02:15.3]} 20. cxd5 {[%clk 0:02:24.1]} 20... Nb8 {[%clk
0:02:12.8]} 21. Bxa7 {[%clk 0:02:23.6]} 21... Nd7 {[%clk 0:02:12.7]} 22. Be3
{[%clk 0:02:21.4]} 22... f5 {[%clk 0:02:05.9]} 23. Rxc8 {[%clk 0:02:21.3]} 23...
Qxc8 {[%clk 0:02:06]} 24. Rc1 {[%clk 0:02:22.2]} 24... Qa8 {[%clk 0:02:06.4]}
25. Qc2 {[%clk 0:02:22.6]} 25... e4 {[%clk 0:02:02.8]} 26. Bd4 {[%clk
0:02:22.5]} 26... Bf6 {[%clk 0:02:02.1]} 27. Bxf6 {[%clk 0:01:57.3]} 27... Nxf6
{[%clk 0:02:03]} 28. Qc3 {[%clk 0:01:54.7]} 28... Rf8 {[%clk 0:01:54.5]} 29. a4
{[%clk 0:01:53.4]} 29... b6 {[%clk 0:01:43.7]} 30. Qc6 {[%clk 0:01:51.8]} 30...
Qd8 {[%clk 0:01:42.5]} 31. e3 {[%clk 0:01:47.8]} 31... Ng4 {[%clk 0:01:42]} 32.
b4 {[%clk 0:01:44.1]} 32... Ne5 {[%clk 0:01:41.7]} 33. Qc7 {[%clk 0:01:43]}
33... Qf6 {[%clk 0:01:37.6]} 34. Qxb6 {[%clk 0:01:41.5]} 34... Nd3 {[%clk
0:01:37.9]} 35. Rf1 {[%clk 0:01:38.8]} 35... Qe5 {[%clk 0:01:31.2]} 36. b5
{[%clk 0:01:36.6]} 36... Qxd5 {[%clk 0:01:31.1]} 37. a5 {[%clk 0:01:35.8]} 37...
Qc5 {[%clk 0:01:29.2]} 38. Qxc5 {[%clk 0:01:34.9]} 38... dxc5 {[%clk 0:01:29.7]}
39. Ra1 {[%clk 0:01:34.1]} 39... c4 {[%clk 0:01:25.2]} 40. a6 {[%clk 0:01:33.6]}
40... c3 {[%clk 0:01:25.7]} 41. a7 {[%clk 0:01:33.4]} 41... c2 {[%clk
0:01:26.2]} 42. b6 {[%clk 0:01:33.4]} 42... Nc5 {[%clk 0:01:23.9]} 43. f3 {[%clk
0:01:31.7]} 43... Nb3 {[%clk 0:01:19]} 44. a8=Q {[%clk 0:01:25.8]} 44... c1=Q+
{[%clk 0:01:13.3]} 45. Rxc1 {[%clk 0:01:24.9]} 45... Rxa8 {[%clk 0:01:12.9]} 46.
b7 {[%clk 0:01:25.3]} 46... Rf8 {[%clk 0:01:05.6]} 47. Rc8 {[%clk 0:01:25.3]}
1-0

[Event "Late-Titled-Tuesday-Blitz-September-12-2023"]
[Site "Chess.com"]
[Date "2023.09.12"]
[Round "2"]
[White "subham777"]
[Black "dropstoneDP"]
[Result "0-1"]
[WhiteElo "2543"]
[BlackElo "3019"]
[TimeControl "180+1"]
[EndTime "14:15:38 PDT"]
[Termination "dropstoneDP won by resignation"]

1. e4 {[%clk 0:03:00.9]} 1... e5 {[%clk 0:02:58.8]} 2. Nf3 {[%clk 0:03:00.6]}
2... Nf6 {[%clk 0:02:59.2]} 3. Nxe5 {[%clk 0:03:00.3]} 3... d6 {[%clk
0:02:59.6]} 4. Nf3 {[%clk 0:02:59.1]} 4... Nxe4 {[%clk 0:02:59.9]} 5. Nc3 {[%clk
0:02:53]} 5... Nxc3 {[%clk 0:02:59.8]} 6. dxc3 {[%clk 0:02:47.4]} 6... Be7
{[%clk 0:03:00.7]} 7. Be3 {[%clk 0:02:46.7]} 7... O-O {[%clk 0:03:01.3]} 8. Qd2
{[%clk 0:02:47]} 8... Nd7 {[%clk 0:03:01.8]} 9. O-O-O {[%clk 0:02:47.1]} 9...
Nf6 {[%clk 0:03:02.4]} 10. Bd3 {[%clk 0:02:41.9]} 10... c5 {[%clk 0:03:02.4]}
11. h3 {[%clk 0:02:38.7]} 11... Be6 {[%clk 0:03:01.2]} 12. c4 {[%clk 0:02:31]}
12... b5 {[%clk 0:03:00.6]} 13. cxb5 {[%clk 0:02:22.9]} 13... c4 {[%clk
0:03:00.8]} 14. Be2 {[%clk 0:02:14]} 14... Ne4 {[%clk 0:03:01.3]} 15. Qd4 {[%clk
0:02:01.3]} 15... d5 {[%clk 0:03:01.1]} 16. Bxc4 {[%clk 0:01:53.3]} 16... Bf6
{[%clk 0:02:40.5]} 17. Qd3 {[%clk 0:01:31.9]} 17... dxc4 {[%clk 0:02:16.2]} 18.
Qxe4 {[%clk 0:01:28.5]} 18... Qa5 {[%clk 0:02:16.5]} 19. Nd4 {[%clk 0:01:01.5]}
19... c3 {[%clk 0:02:01]} 20. a3 {[%clk 0:00:17.2]} 20... cxb2+ {[%clk
0:01:58.6]} 21. Kxb2 {[%clk 0:00:18.1]} 21... Qxb5+ {[%clk 0:01:58.5]} 22. Kc1
{[%clk 0:00:16.4]} 22... Qa4 {[%clk 0:01:58.3]} 23. Qd3 {[%clk 0:00:14.2]} 23...
Rab8 {[%clk 0:01:58.5]} 24. Kd2 {[%clk 0:00:11.3]} 24... Rfd8 {[%clk 0:01:57.3]}
25. Ke1 {[%clk 0:00:10.7]} 25... Bc4 {[%clk 0:01:56.3]} 26. Qe4 {[%clk
0:00:10.1]} 26... Bxd4 {[%clk 0:01:53.7]} 27. Rxd4 {[%clk 0:00:08.4]} 27... Qa5+
{[%clk 0:01:48.9]} 28. c3 {[%clk 0:00:03]} 28... Qxc3+ {[%clk 0:01:48.2]} 29.
Rd2 {[%clk 0:00:02.2]} 29... Qc1+ {[%clk 0:01:46.4]} 0-1

[Event "Late-Titled-Tuesday-Blitz-September-12-2023"]
[Site "Chess.com"]
[Date "2023.09.12"]
[Round "2"]
[White "Truequitos"]
[Black "sofaceindisguise"]
[Result "0-1"]
[WhiteElo "2436"]
[BlackElo "2790"]
[TimeControl "180+1"]
[EndTime "14:15:42 PDT"]
[Termination "sofaceindisguise won on time"]

1. e4 {[%clk 0:03:00.9]} 1... c5 {[%clk 0:02:59.7]} 2. Nc3 {[%clk 0:03:00.5]}
2... e6 {[%clk 0:03:00.3]} 3. g3 {[%clk 0:02:59.9]} 3... d5 {[%clk 0:02:58.9]}
4. Bg2 {[%clk 0:02:59.9]} 4... d4 {[%clk 0:02:54.8]} 5. Nce2 {[%clk 0:02:59.9]}
5... d3 {[%clk 0:02:54.6]} 6. cxd3 {[%clk 0:02:46.6]} 6... Qxd3 {[%clk
0:02:54.4]} 7. Nh3 {[%clk 0:02:44.9]} 7... Nc6 {[%clk 0:02:52.4]} 8. Nhf4 {[%clk
0:02:32.5]} 8... Qa6 {[%clk 0:02:51.5]} 9. O-O {[%clk 0:02:32.1]} 9... Nf6
{[%clk 0:02:50.4]} 10. d4 {[%clk 0:02:15.9]} 10... cxd4 {[%clk 0:02:50]} 11.
Nxd4 {[%clk 0:02:16.4]} 11... Bd7 {[%clk 0:02:48.9]} 12. Re1 {[%clk 0:01:54.5]}
12... Bb4 {[%clk 0:02:43.7]} 13. Bf1 {[%clk 0:01:05]} 13... Qb6 {[%clk
0:02:37.4]} 14. Be3 {[%clk 0:00:45.2]} 14... Bxe1 {[%clk 0:02:02]} 15. Nb5
{[%clk 0:00:44.5]} 15... Qa5 {[%clk 0:01:48.8]} 16. Nd6+ {[%clk 0:00:24.2]}
16... Kf8 {[%clk 0:01:47.4]} 17. Nxb7 {[%clk 0:00:22]} 17... Qc7 {[%clk
0:01:46.4]} 18. Bc5+ {[%clk 0:00:13.4]} 18... Kg8 {[%clk 0:01:45.9]} 19. Qxe1
{[%clk 0:00:06.6]} 19... Qxb7 {[%clk 0:01:45.7]} 20. e5 {[%clk 0:00:03.6]} 20...
Nd5 {[%clk 0:01:46.3]} 21. Nh5 {[%clk 0:00:01.7]} 21... Rc8 {[%clk 0:01:40.8]}
22. Qd2 {[%clk 0:00:02.1]} 22... h6 {[%clk 0:01:38.3]} 23. Rc1 {[%clk
0:00:02.3]} 23... Nxe5 {[%clk 0:01:37.2]} 0-1

[Event "Late-Titled-Tuesday-Blitz-September-12-2023"]
[Site "Chess.com"]
[Date "2023.09.12"]
[Round "2"]
[White "HajiyevKanan"]
[Black "Boninknights"]
[Result "1-0"]
[WhiteElo "2517"]
[BlackElo "2298"]
[TimeControl "180+1"]
[EndTime "14:15:46 PDT"]
[Termination "HajiyevKanan won by resignation"]

1. d4 {[%clk 0:02:52.7]} 1... Nf6 {[%clk 0:02:58.6]} 2. Nf3 {[%clk 0:02:53.4]}
2... d6 {[%clk 0:02:57.6]} 3. c4 {[%clk 0:02:53]} 3... g6 {[%clk 0:02:56.6]} 4.
g3 {[%clk 0:02:53.5]} 4... Bg7 {[%clk 0:02:55.6]} 5. Bg2 {[%clk 0:02:54.2]} 5...
O-O {[%clk 0:02:54.7]} 6. O-O {[%clk 0:02:55.1]} 6... c6 {[%clk 0:02:53.4]} 7.
b3 {[%clk 0:02:55.8]} 7... a5 {[%clk 0:02:50.9]} 8. Nc3 {[%clk 0:02:55.2]} 8...
Nbd7 {[%clk 0:02:46.4]} 9. Bb2 {[%clk 0:02:54.6]} 9... e5 {[%clk 0:02:44.6]} 10.
Qc2 {[%clk 0:02:53.7]} 10... Re8 {[%clk 0:02:43.1]} 11. e4 {[%clk 0:02:51.9]}
11... exd4 {[%clk 0:02:38]} 12. Nxd4 {[%clk 0:02:52.8]} 12... Nc5 {[%clk
0:02:34]} 13. Rad1 {[%clk 0:02:44.9]} 13... Qb6 {[%clk 0:02:32]} 14. Kh1 {[%clk
0:02:43.9]} 14... Ng4 {[%clk 0:02:24.6]} 15. h3 {[%clk 0:02:30.6]} 15... Ne5
{[%clk 0:02:19.5]} 16. f4 {[%clk 0:02:26.6]} 16... Ned3 {[%clk 0:02:12.2]} 17.
Rxd3 {[%clk 0:02:26.7]} 17... Nxd3 {[%clk 0:02:11.3]} 18. Na4 {[%clk 0:02:26.9]}
18... Nb4 {[%clk 0:01:51.9]} 19. Nxb6 {[%clk 0:02:10.5]} 19... Nxc2 {[%clk
0:01:50.8]} 20. Nxc2 {[%clk 0:01:59.6]} 20... Bxb2 {[%clk 0:01:42.2]} 21. Nxa8
{[%clk 0:01:59.6]} 21... f5 {[%clk 0:01:34.4]} 22. Nb6 {[%clk 0:01:36.4]} 22...
fxe4 {[%clk 0:01:29.3]} 23. Nxc8 {[%clk 0:01:36.2]} 23... Rxc8 {[%clk
0:01:28.1]} 24. Bxe4 {[%clk 0:01:36.8]} 24... Bf6 {[%clk 0:01:23.4]} 25. Re1
{[%clk 0:01:34.4]} 25... Re8 {[%clk 0:01:18.7]} 26. Bd5+ {[%clk 0:01:31.9]}
26... Kf8 {[%clk 0:01:17.6]} 27. Rxe8+ {[%clk 0:01:31.4]} 27... Kxe8 {[%clk
0:01:16.7]} 28. Be4 {[%clk 0:01:29.8]} 28... Ke7 {[%clk 0:01:13.1]} 29. Kg2
{[%clk 0:01:30.1]} 29... Ke6 {[%clk 0:01:12]} 30. Kf3 {[%clk 0:01:27.4]} 30...
d5 {[%clk 0:01:11.2]} 31. cxd5+ {[%clk 0:01:21.1]} 31... cxd5 {[%clk 0:01:10.1]}
32. Bd3 {[%clk 0:01:22]} 32... Kd6 {[%clk 0:01:07.6]} 33. g4 {[%clk 0:01:20]}
33... Kc5 {[%clk 0:01:03.3]} 34. g5 {[%clk 0:01:20]} 34... Bg7 {[%clk
0:01:02.3]} 35. h4 {[%clk 0:01:20.4]} 35... b5 {[%clk 0:00:59.3]} 36. h5 {[%clk
0:01:20.7]} 36... gxh5 {[%clk 0:00:57.4]} 37. Bxh7 {[%clk 0:01:21.6]} 37... a4
{[%clk 0:00:54.4]} 38. Bd3 {[%clk 0:01:12.6]} 38... axb3 {[%clk 0:00:52.8]} 39.
axb3 {[%clk 0:01:13.5]} 1-0

[Event "Late-Titled-Tuesday-Blitz-September-12-2023"]
[Site "Chess.com"]
[Date "2023.09.12"]
[Round "2"]
[White "ljuks68"]
[Black "baki83"]
[Result "0-1"]
[WhiteElo "2446"]
[BlackElo "2813"]
[TimeControl "180+1"]
[EndTime "14:15:59 PDT"]
[Termination "baki83 won on time"]

1. e4 {[%clk 0:03:00.9]} 1... c5 {[%clk 0:02:44.3]} 2. Nf3 {[%clk 0:03:00.4]}
2... d6 {[%clk 0:02:44.9]} 3. d4 {[%clk 0:03:00.6]} 3... cxd4 {[%clk 0:02:44.8]}
4. Nxd4 {[%clk 0:03:01.2]} 4... Nf6 {[%clk 0:02:45.5]} 5. Nc3 {[%clk 0:03:01.7]}
5... Nc6 {[%clk 0:02:46.2]} 6. Bc4 {[%clk 0:03:00.7]} 6... Qb6 {[%clk
0:02:44.8]} 7. Nb3 {[%clk 0:02:59.2]} 7... a6 {[%clk 0:02:43]} 8. Bg5 {[%clk
0:02:57.9]} 8... e6 {[%clk 0:02:42.8]} 9. Bxf6 {[%clk 0:02:55.8]} 9... gxf6
{[%clk 0:02:42.7]} 10. Qh5 {[%clk 0:02:56.1]} 10... Be7 {[%clk 0:02:40.8]} 11.
Rf1 {[%clk 0:02:54.9]} 11... Qc7 {[%clk 0:02:34.1]} 12. O-O-O {[%clk 0:02:51.6]}
12... b5 {[%clk 0:02:32.4]} 13. Bd3 {[%clk 0:02:44.8]} 13... b4 {[%clk
0:02:32.8]} 14. Ne2 {[%clk 0:02:43.9]} 14... Bd7 {[%clk 0:02:31.2]} 15. f4
{[%clk 0:02:40.4]} 15... a5 {[%clk 0:02:29]} 16. Nbd4 {[%clk 0:02:23.5]} 16...
a4 {[%clk 0:02:28.9]} 17. f5 {[%clk 0:02:03.9]} 17... Nxd4 {[%clk 0:02:12.9]}
18. Nxd4 {[%clk 0:02:03]} 18... Qc5 {[%clk 0:02:09.2]} 19. Be2 {[%clk
0:01:07.5]} 19... e5 {[%clk 0:02:08.1]} 20. Ne6 {[%clk 0:01:03.1]} 20... Qe3+
{[%clk 0:02:07.6]} 21. Kb1 {[%clk 0:00:54.1]} 21... Rc8 {[%clk 0:01:58.8]} 22.
Ba6 {[%clk 0:00:47.2]} 22... Rc6 {[%clk 0:01:32.1]} 23. Bb5 {[%clk 0:00:44.1]}
23... b3 {[%clk 0:01:31.6]} 24. Bxc6 {[%clk 0:00:20.6]} 24... bxc2+ {[%clk
0:01:31.7]} 25. Kxc2 {[%clk 0:00:19.9]} 25... Bxc6 {[%clk 0:01:31.9]} 26. Kb1
{[%clk 0:00:17.6]} 26... a3 {[%clk 0:01:28.3]} 27. bxa3 {[%clk 0:00:07.6]} 27...
Bxe4+ {[%clk 0:01:26.1]} 28. Kb2 {[%clk 0:00:07.8]} 28... Kd7 {[%clk 0:01:24.2]}
0-1

[Event "Late-Titled-Tuesday-Blitz-September-12-2023"]
[Site "Chess.com"]
[Date "2023.09.12"]
[Round "2"]
[White "Good_Knight_Kiss"]
[Black "aNaartjieZA"]
[Result "0-1"]
[WhiteElo "2344"]
[BlackElo "2599"]
[TimeControl "180+1"]
[EndTime "14:16:01 PDT"]
[Termination "aNaartjieZA won on time"]

1. e4 {[%clk 0:03:00.9]} 1... e6 {[%clk 0:02:59.7]} 2. d4 {[%clk 0:03:00.7]}
2... d5 {[%clk 0:03:00.1]} 3. Nc3 {[%clk 0:03:00.7]} 3... Bb4 {[%clk 0:02:59.7]}
4. exd5 {[%clk 0:03:00.1]} 4... exd5 {[%clk 0:02:59.7]} 5. Bd3 {[%clk
0:03:00.1]} 5... Nf6 {[%clk 0:02:59.8]} 6. Bg5 {[%clk 0:02:59.6]} 6... h6 {[%clk
0:02:58.5]} 7. Bh4 {[%clk 0:02:53.1]} 7... Nc6 {[%clk 0:02:58.5]} 8. Ne2 {[%clk
0:02:49]} 8... O-O {[%clk 0:02:55.1]} 9. O-O {[%clk 0:02:48.6]} 9... Be7 {[%clk
0:02:55]} 10. a3 {[%clk 0:02:45.6]} 10... Re8 {[%clk 0:02:47.8]} 11. h3 {[%clk
0:02:28]} 11... Nh5 {[%clk 0:02:46.9]} 12. Bxe7 {[%clk 0:02:23.6]} 12... Nxe7
{[%clk 0:02:47]} 13. Qd2 {[%clk 0:02:17.9]} 13... Bf5 {[%clk 0:02:40]} 14. Rae1
{[%clk 0:02:15.1]} 14... Qd7 {[%clk 0:02:36.5]} 15. Ng3 {[%clk 0:01:21.5]} 15...
Bxd3 {[%clk 0:02:31.5]} 16. Qxd3 {[%clk 0:01:17.3]} 16... Nf4 {[%clk 0:02:31.5]}
17. Qf3 {[%clk 0:01:15.2]} 17... Neg6 {[%clk 0:02:29.2]} 18. Re3 {[%clk
0:01:03.6]} 18... c6 {[%clk 0:02:21.8]} 19. Rfe1 {[%clk 0:01:02.9]} 19... Ne6
{[%clk 0:02:22]} 20. Nf5 {[%clk 0:00:59.7]} 20... Qd8 {[%clk 0:02:16.2]} 21. Qg3
{[%clk 0:00:55.8]} 21... Qg5 {[%clk 0:02:10.9]} 22. Qxg5 {[%clk 0:00:50.7]}
22... hxg5 {[%clk 0:02:11.1]} 23. g3 {[%clk 0:00:50]} 23... Red8 {[%clk
0:02:08.6]} 24. Kg2 {[%clk 0:00:44.8]} 24... Ngf8 {[%clk 0:02:04.7]} 25. Ne2
{[%clk 0:00:36.2]} 25... g6 {[%clk 0:02:03.3]} 26. Nh6+ {[%clk 0:00:35.1]} 26...
Kg7 {[%clk 0:02:03.5]} 27. Ng4 {[%clk 0:00:35.3]} 27... b6 {[%clk 0:01:57.8]}
28. Ne5 {[%clk 0:00:32.6]} 28... Rac8 {[%clk 0:01:57.4]} 29. b4 {[%clk
0:00:29.5]} 29... c5 {[%clk 0:01:52.4]} 30. bxc5 {[%clk 0:00:26.9]} 30... bxc5
{[%clk 0:01:52.7]} 31. c3 {[%clk 0:00:24.5]} 31... cxd4 {[%clk 0:01:48.6]} 32.
cxd4 {[%clk 0:00:24.6]} 32... Rc2 {[%clk 0:01:47.5]} 33. Rb1 {[%clk 0:00:21.7]}
33... Nd7 {[%clk 0:01:43.3]} 34. Rb7 {[%clk 0:00:11.6]} 34... Nxe5 {[%clk
0:01:41.7]} 0-1